[Event "*** Titled Tuesday Blitz"]
[Site "Chess.com"]
[Date "2021.03.02"]
[Round "3"]
[White "LuisFSiles"]
[Black "ObligatePawnivore"]
[Result "1-0"]
[WhiteElo "2301"]
[BlackElo "1835"]
[TimeControl "180+1"]
[EndTime "10:28:37 PST"]
[Termination "LuisFSiles won on time"]

1. e4 {[%clk 0:03:00.9]} 1... e6 {[%clk 0:02:59.3]} 2. d4 {[%clk 0:02:59.9]}
2... d5 {[%clk 0:02:59.7]} 3. Nd2 {[%clk 0:02:58.8]} 3... Be7 {[%clk 0:02:59.1]}
4. Ngf3 {[%clk 0:02:57.8]} 4... Nf6 {[%clk 0:02:58.3]} 5. Bd3 {[%clk 0:02:53.7]}
5... c5 {[%clk 0:02:56.7]} 6. c3 {[%clk 0:02:53.1]} 6... cxd4 {[%clk 0:02:55.8]}
7. cxd4 {[%clk 0:02:53]} 7... dxe4 {[%clk 0:02:55.5]} 8. Nxe4 {[%clk 0:02:53.2]}
8... Nc6 {[%clk 0:02:51.2]} 9. Nc3 {[%clk 0:02:52.5]} 9... O-O {[%clk
0:02:36.7]} 10. O-O {[%clk 0:02:51.3]} 10... b6 {[%clk 0:02:30]} 11. Re1 {[%clk
0:02:40.3]} 11... Bb7 {[%clk 0:02:27.9]} 12. a3 {[%clk 0:02:39.9]} 12... Rc8
{[%clk 0:01:57.1]} 13. Bc2 {[%clk 0:02:37.7]} 13... Qd6 {[%clk 0:01:45.3]} 14.
Qd3 {[%clk 0:02:34.5]} 14... g6 {[%clk 0:01:25.6]} 15. Bh6 {[%clk 0:02:14.8]}
15... Rfd8 {[%clk 0:01:24.3]} 16. Rad1 {[%clk 0:02:14.2]} 16... Nd5 {[%clk
0:01:08.8]} 17. Nxd5 {[%clk 0:01:49.2]} 17... Qxd5 {[%clk 0:01:09.7]} 18. Bb3
{[%clk 0:01:48]} 18... Qh5 {[%clk 0:01:06.2]} 19. Bc1 {[%clk 0:01:25.1]} 19...
Bf6 {[%clk 0:00:53.1]} 20. d5 {[%clk 0:01:15.8]} 20... Na5 {[%clk 0:00:48.8]}
21. d6 {[%clk 0:00:49.8]} 21... Nxb3 {[%clk 0:00:44.4]} 22. Qxb3 {[%clk
0:00:49.7]} 22... Bd5 {[%clk 0:00:40.9]} 23. Qe3 {[%clk 0:00:33.4]} 23... Rxd6
{[%clk 0:00:37]} 24. Qf4 {[%clk 0:00:33.7]} 24... Be7 {[%clk 0:00:21.9]} 25. Ne5
{[%clk 0:00:29.8]} 25... Qf5 {[%clk 0:00:20.5]} 26. Qg3 {[%clk 0:00:20.4]} 26...
Rdd8 {[%clk 0:00:19.7]} 27. Ng4 {[%clk 0:00:20.5]} 27... Qc2 {[%clk 0:00:13.6]}
28. Nh6+ {[%clk 0:00:19.8]} 28... Kg7 {[%clk 0:00:13.4]} 29. Bd2 {[%clk
0:00:18.4]} 29... Qxb2 {[%clk 0:00:12.3]} 30. Qe3 {[%clk 0:00:18]} 30... Rc2
{[%clk 0:00:10.3]} 31. Bb4 {[%clk 0:00:16.9]} 31... Bxb4 {[%clk 0:00:08.1]} 32.
axb4 {[%clk 0:00:17.8]} 32... Qc3 {[%clk 0:00:05.4]} 33. Qg5 {[%clk 0:00:15.9]}
33... Qf6 {[%clk 0:00:04.3]} 34. Qe3 {[%clk 0:00:13.6]} 34... Rdc8 {[%clk
0:00:03.6]} 35. Ng4 {[%clk 0:00:13.2]} 35... Qf5 {[%clk 0:00:02.1]} 36. Qh6+
{[%clk 0:00:12.6]} 36... Kg8 {[%clk 0:00:01.7]} 37. Qh4 {[%clk 0:00:13.2]} 1-0

[Event "*** Titled Tuesday Blitz"]
[Site "Chess.com"]
[Date "2021.03.02"]
[Round "3"]
[White "atalz0"]
[Black "Bigfish1995"]
[Result "0-1"]
[WhiteElo "2472"]
[BlackElo "3122"]
[TimeControl "180+1"]
[EndTime "10:28:38 PST"]
[Termination "Bigfish1995 won on time"]

1. d4 {[%clk 0:03:00.9]} 1... Nf6 {[%clk 0:02:48]} 2. c4 {[%clk 0:03:01.2]} 2...
g6 {[%clk 0:02:48.2]} 3. f3 {[%clk 0:03:01.3]} 3... c5 {[%clk 0:02:47.5]} 4. d5
{[%clk 0:03:01]} 4... d6 {[%clk 0:02:46]} 5. e4 {[%clk 0:03:01.4]} 5... Bg7
{[%clk 0:02:46.5]} 6. Ne2 {[%clk 0:03:01.8]} 6... O-O {[%clk 0:02:45.8]} 7. Nec3
{[%clk 0:03:02.2]} 7... a6 {[%clk 0:02:42]} 8. Be2 {[%clk 0:03:00.4]} 8... e6
{[%clk 0:02:34.6]} 9. a4 {[%clk 0:03:00.4]} 9... exd5 {[%clk 0:02:32.7]} 10.
cxd5 {[%clk 0:03:01.3]} 10... Nh5 {[%clk 0:02:32.6]} 11. O-O {[%clk 0:02:57.8]}
11... f5 {[%clk 0:02:15.1]} 12. exf5 {[%clk 0:02:29.7]} 12... Bd4+ {[%clk
0:02:12.7]} 13. Kh1 {[%clk 0:02:29.4]} 13... Bxf5 {[%clk 0:02:07.5]} 14. Na3
{[%clk 0:02:07.5]} 14... Bc8 {[%clk 0:01:25.5]} 15. Bh6 {[%clk 0:01:48.9]} 15...
Rf7 {[%clk 0:01:18.9]} 16. f4 {[%clk 0:01:46.6]} 16... Ng7 {[%clk 0:01:12.2]}
17. Bg5 {[%clk 0:01:42.8]} 17... Qf8 {[%clk 0:01:10.3]} 18. Nc4 {[%clk
0:01:35.6]} 18... Nd7 {[%clk 0:01:05.1]} 19. Ne4 {[%clk 0:01:30.7]} 19... Nf5
{[%clk 0:01:03.4]} 20. g4 {[%clk 0:01:14]} 20... Ne3 {[%clk 0:00:59.8]} 21. Nxe3
{[%clk 0:01:13.2]} 21... Bxe3 {[%clk 0:01:00.7]} 22. f5 {[%clk 0:01:03.5]} 22...
Bd4 {[%clk 0:00:51.1]} 23. fxg6 {[%clk 0:00:52.4]} 23... hxg6 {[%clk 0:00:50.3]}
24. Rxf7 {[%clk 0:00:50]} 24... Qxf7 {[%clk 0:00:50.4]} 25. Qf1 {[%clk
0:00:39.9]} 25... Be5 {[%clk 0:00:43.2]} 26. Qxf7+ {[%clk 0:00:35.6]} 26... Kxf7
{[%clk 0:00:44.1]} 27. Rf1+ {[%clk 0:00:35.8]} 27... Kg7 {[%clk 0:00:43.1]} 28.
Bf4 {[%clk 0:00:26.2]} 28... b5 {[%clk 0:00:41.3]} 29. axb5 {[%clk 0:00:21.5]}
29... Bb7 {[%clk 0:00:41.4]} 30. Bxe5+ {[%clk 0:00:13.7]} 30... Nxe5 {[%clk
0:00:41.1]} 31. Nxd6 {[%clk 0:00:12.5]} 31... Bxd5+ {[%clk 0:00:40.9]} 32. Kg1
{[%clk 0:00:13.4]} 32... Rd8 {[%clk 0:00:38.8]} 33. bxa6 {[%clk 0:00:08.5]}
33... Rxd6 {[%clk 0:00:37.9]} 34. Rd1 {[%clk 0:00:09.1]} 34... Rd7 {[%clk
0:00:36]} 35. a7 {[%clk 0:00:07.7]} 35... Ba8 {[%clk 0:00:36.3]} 36. Rxd7+
{[%clk 0:00:06.5]} 36... Nxd7 {[%clk 0:00:37.2]} 37. Kf2 {[%clk 0:00:05.7]}
37... Nb6 {[%clk 0:00:37.6]} 38. Ke3 {[%clk 0:00:06.1]} 38... Nc8 {[%clk
0:00:37.3]} 39. Bf3 {[%clk 0:00:05.3]} 39... Bxf3 {[%clk 0:00:37.4]} 40. Kxf3
{[%clk 0:00:06.2]} 40... Nxa7 {[%clk 0:00:37.8]} 41. Ke4 {[%clk 0:00:07.1]}
41... Nc6 {[%clk 0:00:32.3]} 42. Kd5 {[%clk 0:00:06.9]} 42... Nb4+ {[%clk
0:00:32.7]} 43. Kxc5 {[%clk 0:00:06.8]} 43... Nd3+ {[%clk 0:00:33.1]} 44. Kd4
{[%clk 0:00:06.9]} 44... Nxb2 {[%clk 0:00:34]} 45. h4 {[%clk 0:00:06.9]} 45...
Kh6 {[%clk 0:00:34]} 46. Ke5 {[%clk 0:00:05.7]} 46... Nc4+ {[%clk 0:00:33.8]}
47. Kf6 {[%clk 0:00:04.3]} 47... Ne3 {[%clk 0:00:33.9]} 0-1

[Event "*** Titled Tuesday Blitz"]
[Site "Chess.com"]
[Date "2021.03.02"]
[Round "3"]
[White "Ladislav1969"]
[Black "Synctel"]
[Result "1-0"]
[WhiteElo "2310"]
[BlackElo "2013"]
[TimeControl "180+1"]
[EndTime "10:28:38 PST"]
[Termination "Ladislav1969 won by checkmate"]

1. e4 {[%clk 0:02:59.3]} 1... e6 {[%clk 0:02:59.6]} 2. d4 {[%clk 0:02:59.2]}
2... d5 {[%clk 0:02:59.9]} 3. e5 {[%clk 0:03:00.1]} 3... c5 {[%clk 0:02:59.6]}
4. c3 {[%clk 0:03:01]} 4... Nc6 {[%clk 0:02:58.9]} 5. Nf3 {[%clk 0:03:01.9]}
5... Bd7 {[%clk 0:02:59.4]} 6. a3 {[%clk 0:03:01.2]} 6... Rc8 {[%clk 0:02:59.6]}
7. b4 {[%clk 0:02:57.4]} 7... cxd4 {[%clk 0:02:57.4]} 8. cxd4 {[%clk 0:02:57.6]}
8... Qb6 {[%clk 0:02:50.4]} 9. Be3 {[%clk 0:02:49.9]} 9... Nge7 {[%clk
0:02:40.5]} 10. Bd3 {[%clk 0:02:49.8]} 10... Nf5 {[%clk 0:02:40]} 11. O-O {[%clk
0:02:49.6]} 11... Be7 {[%clk 0:02:37.6]} 12. Nbd2 {[%clk 0:02:28.2]} 12... Nxe3
{[%clk 0:02:34.4]} 13. fxe3 {[%clk 0:02:27.7]} 13... O-O {[%clk 0:02:34.3]} 14.
Nb3 {[%clk 0:02:10.3]} 14... f6 {[%clk 0:02:10.6]} 15. Nc5 {[%clk 0:01:54.5]}
15... Rcd8 {[%clk 0:01:53.2]} 16. Qb1 {[%clk 0:01:31]} 16... f5 {[%clk 0:01:37]}
17. Rc1 {[%clk 0:01:20.5]} 17... a6 {[%clk 0:01:28.2]} 18. Nxd7 {[%clk
0:00:52.1]} 18... Rxd7 {[%clk 0:01:27.5]} 19. b5 {[%clk 0:00:52.6]} 19... axb5
{[%clk 0:01:20.7]} 20. Qxb5 {[%clk 0:00:53.2]} 20... Qa7 {[%clk 0:01:03]} 21. a4
{[%clk 0:00:49.3]} 21... Rc7 {[%clk 0:00:52.3]} 22. g3 {[%clk 0:00:49]} 22...
Rfc8 {[%clk 0:00:51.9]} 23. Rcb1 {[%clk 0:00:43.6]} 23... Na5 {[%clk 0:00:35.5]}
24. Qb6 {[%clk 0:00:37.5]} 24... Rc1+ {[%clk 0:00:28.1]} 25. Kg2 {[%clk
0:00:34.2]} 25... Qxb6 {[%clk 0:00:27.4]} 26. Rxb6 {[%clk 0:00:31.4]} 26... Rxa1
{[%clk 0:00:27.9]} 27. Rxe6 {[%clk 0:00:31.4]} 27... Kf7 {[%clk 0:00:26.2]} 28.
Bxf5 {[%clk 0:00:29.9]} 28... Ra2+ {[%clk 0:00:21.9]} 29. Kh3 {[%clk 0:00:24.7]}
29... Rc3 {[%clk 0:00:18.4]} 30. Rb6 {[%clk 0:00:19.6]} 30... Rxe3 {[%clk
0:00:16.6]} 31. Be6+ {[%clk 0:00:19.5]} 31... Ke8 {[%clk 0:00:14.4]} 32. Nh4
{[%clk 0:00:13.5]} 32... Bxh4 {[%clk 0:00:10.9]} 33. Kxh4 {[%clk 0:00:13.9]}
33... Rxh2+ {[%clk 0:00:10.7]} 34. Kg4 {[%clk 0:00:14.8]} 34... Rg2 {[%clk
0:00:10.1]} 35. Bxd5 {[%clk 0:00:11.8]} 35... Rgxg3+ {[%clk 0:00:09.9]} 36. Kf4
{[%clk 0:00:12.2]} 36... Nc6 {[%clk 0:00:05.8]} 37. Rxb7 {[%clk 0:00:11.5]}
37... g5+ {[%clk 0:00:04.1]} 38. Kf5 {[%clk 0:00:10.4]} 38... Ne7+ {[%clk
0:00:04.8]} 39. Ke6 {[%clk 0:00:10]} 39... Nxd5 {[%clk 0:00:05.4]} 40. Kxd5
{[%clk 0:00:10.3]} 40... Ra3 {[%clk 0:00:04.2]} 41. Ke6 {[%clk 0:00:09.7]} 41...
Rxa4 {[%clk 0:00:03.7]} 42. Rb8# {[%clk 0:00:09.7]} 1-0

[Event "*** Titled Tuesday Blitz"]
[Site "Chess.com"]
[Date "2021.03.02"]
[Round "3"]
[White "MaxLeto"]
[Black "cstevens1"]
[Result "0-1"]
[WhiteElo "2414"]
[BlackElo "2623"]
[TimeControl "180+1"]
[EndTime "10:28:39 PST"]
[Termination "cstevens1 won on time"]

1. g4 {[%clk 0:03:00.9]} 1... d5 {[%clk 0:02:33.1]} 2. Bg2 {[%clk 0:03:00.4]}
2... c6 {[%clk 0:02:33.3]} 3. g5 {[%clk 0:02:57.6]} 3... e5 {[%clk 0:02:32.7]}
4. d4 {[%clk 0:02:57.9]} 4... exd4 {[%clk 0:02:19.9]} 5. Qxd4 {[%clk 0:02:41]}
5... Qb6 {[%clk 0:02:19.2]} 6. Nf3 {[%clk 0:02:24.6]} 6... Ne7 {[%clk 0:02:16]}
7. Nc3 {[%clk 0:02:09.3]} 7... Nf5 {[%clk 0:02:14.6]} 8. Qxb6 {[%clk 0:01:33.1]}
8... axb6 {[%clk 0:02:12.9]} 9. Bd2 {[%clk 0:01:24.2]} 9... d4 {[%clk
0:02:10.9]} 10. Ne4 {[%clk 0:01:22.6]} 10... Be6 {[%clk 0:02:11.5]} 11. Ng3
{[%clk 0:01:07.8]} 11... Nxg3 {[%clk 0:01:56.8]} 12. hxg3 {[%clk 0:01:07.6]}
12... Bd5 {[%clk 0:01:57.7]} 13. Kf1 {[%clk 0:00:55.3]} 13... c5 {[%clk
0:01:46.9]} 14. Ne5 {[%clk 0:00:47.2]} 14... Bxg2+ {[%clk 0:01:46.1]} 15. Kxg2
{[%clk 0:00:48.1]} 15... Nd7 {[%clk 0:01:33.8]} 16. Nxd7 {[%clk 0:00:40.3]}
16... Kxd7 {[%clk 0:01:34.7]} 17. a4 {[%clk 0:00:39.3]} 17... Be7 {[%clk
0:01:28.4]} 18. b3 {[%clk 0:00:38.8]} 18... f6 {[%clk 0:01:27]} 19. gxf6 {[%clk
0:00:29.6]} 19... Bxf6 {[%clk 0:01:26.8]} 20. Rad1 {[%clk 0:00:27.1]} 20... Kc6
{[%clk 0:01:26]} 21. Rh5 {[%clk 0:00:24.8]} 21... g6 {[%clk 0:01:22.8]} 22. Rh6
{[%clk 0:00:22.4]} 22... Bg7 {[%clk 0:01:21.9]} 23. Rh4 {[%clk 0:00:22.5]} 23...
h5 {[%clk 0:01:18.9]} 24. Bg5 {[%clk 0:00:22.5]} 24... b5 {[%clk 0:01:16.2]} 25.
axb5+ {[%clk 0:00:21.2]} 25... Kxb5 {[%clk 0:01:17.1]} 26. e3 {[%clk 0:00:21.6]}
26... Ra2 {[%clk 0:01:14.8]} 27. Rd2 {[%clk 0:00:20.2]} 27... Rf8 {[%clk
0:01:02.8]} 28. Re4 {[%clk 0:00:19]} 28... Rf5 {[%clk 0:01:02.7]} 29. Bf4 {[%clk
0:00:12.2]} 29... g5 {[%clk 0:01:00.9]} 30. Bd6 {[%clk 0:00:11.3]} 30... Kc6
{[%clk 0:00:56.3]} 31. Be7 {[%clk 0:00:05.2]} 31... g4 {[%clk 0:00:49.1]} 32.
Re6+ {[%clk 0:00:05]} 32... Kd7 {[%clk 0:00:48.7]} 33. Re4 {[%clk 0:00:04.8]}
33... b6 {[%clk 0:00:36.1]} 34. Bh4 {[%clk 0:00:03.2]} 34... Re5 {[%clk
0:00:35.9]} 35. Rf4 {[%clk 0:00:02.1]} 35... Bh6 {[%clk 0:00:14.3]} 36. Rf7+
{[%clk 0:00:01.7]} 36... Ke8 {[%clk 0:00:12.3]} 37. Rh7 {[%clk 0:00:02.1]} 37...
Re6 {[%clk 0:00:09.2]} 0-1

[Event "*** Titled Tuesday Blitz"]
[Site "Chess.com"]
[Date "2021.03.02"]
[Round "3"]
[White "Federtiu"]
[Black "whogeeyao"]
[Result "1-0"]
[WhiteElo "2610"]
[BlackElo "2405"]
[TimeControl "180+1"]
[EndTime "10:28:39 PST"]
[Termination "Federtiu won by resignation"]

1. e4 {[%clk 0:03:00.9]} 1... c5 {[%clk 0:02:57.2]} 2. Nc3 {[%clk 0:03:00.4]}
2... e6 {[%clk 0:02:58.1]} 3. Nge2 {[%clk 0:02:59.9]} 3... Nc6 {[%clk
0:02:58.1]} 4. d4 {[%clk 0:03:00.2]} 4... cxd4 {[%clk 0:02:58.1]} 5. Nxd4 {[%clk
0:03:01.1]} 5... Qc7 {[%clk 0:02:58.7]} 6. g4 {[%clk 0:02:59.7]} 6... a6 {[%clk
0:02:45.2]} 7. Bg2 {[%clk 0:02:58]} 7... d6 {[%clk 0:02:16.9]} 8. h4 {[%clk
0:02:34.3]} 8... Nf6 {[%clk 0:02:10.9]} 9. g5 {[%clk 0:02:33]} 9... Nd7 {[%clk
0:02:10.1]} 10. Nde2 {[%clk 0:02:31.8]} 10... b5 {[%clk 0:02:07.7]} 11. a3
{[%clk 0:02:30.6]} 11... Bb7 {[%clk 0:02:07.5]} 12. f4 {[%clk 0:02:29.8]} 12...
g6 {[%clk 0:02:03.5]} 13. h5 {[%clk 0:02:28.5]} 13... Bg7 {[%clk 0:02:00.3]} 14.
h6 {[%clk 0:02:28.1]} 14... Bf8 {[%clk 0:02:00.5]} 15. Be3 {[%clk 0:02:28.6]}
15... Nb6 {[%clk 0:01:54.2]} 16. Qd3 {[%clk 0:02:24.2]} 16... Nc4 {[%clk
0:01:52.8]} 17. Bc1 {[%clk 0:02:22.9]} 17... Be7 {[%clk 0:01:48.5]} 18. b3
{[%clk 0:02:22.7]} 18... Nb6 {[%clk 0:01:47.7]} 19. Bb2 {[%clk 0:02:23]} 19...
O-O-O {[%clk 0:01:46.5]} 20. O-O-O {[%clk 0:02:19]} 20... Rhe8 {[%clk
0:01:44.6]} 21. Kb1 {[%clk 0:02:18.9]} 21... b4 {[%clk 0:01:39.7]} 22. axb4
{[%clk 0:02:17.9]} 22... Nxb4 {[%clk 0:01:40.6]} 23. Qd4 {[%clk 0:02:18.8]}
23... Qc5 {[%clk 0:01:35.8]} 24. Ba3 {[%clk 0:01:58.2]} 24... Qxd4 {[%clk
0:01:31.7]} 25. Nxd4 {[%clk 0:01:59.1]} 25... Nc6 {[%clk 0:01:30.9]} 26. Nxc6
{[%clk 0:01:53.3]} 26... Bxc6 {[%clk 0:01:31.8]} 27. Rhe1 {[%clk 0:01:53.9]}
27... Kc7 {[%clk 0:01:21.3]} 28. Na2 {[%clk 0:01:38.9]} 28... a5 {[%clk
0:01:17.5]} 29. c4 {[%clk 0:01:38.3]} 29... a4 {[%clk 0:01:12.7]} 30. Nb4 {[%clk
0:01:37.3]} 30... axb3 {[%clk 0:00:57.1]} 31. Nxc6 {[%clk 0:01:10.2]} 31... Kxc6
{[%clk 0:00:58]} 32. e5+ {[%clk 0:00:59]} 32... d5 {[%clk 0:00:55.9]} 33. Bxe7
{[%clk 0:00:55.1]} 33... Rxe7 {[%clk 0:00:55.4]} 34. Rc1 {[%clk 0:00:56]} 34...
Kb7 {[%clk 0:00:43.7]} 35. Re3 {[%clk 0:00:41.1]} 35... Rc7 {[%clk 0:00:24.9]}
36. Rxb3 {[%clk 0:00:29.8]} 36... Rc5 {[%clk 0:00:22.5]} 37. cxd5 {[%clk
0:00:23]} 37... Rxc1+ {[%clk 0:00:21]} 38. Kxc1 {[%clk 0:00:23.9]} 38... exd5
{[%clk 0:00:20.1]} 39. Rc3 {[%clk 0:00:16.8]} 39... Rc8 {[%clk 0:00:16.9]} 40.
Rxc8 {[%clk 0:00:13]} 40... Kxc8 {[%clk 0:00:17.8]} 41. f5 {[%clk 0:00:13.3]}
41... gxf5 {[%clk 0:00:14.6]} 42. e6 {[%clk 0:00:13.6]} 42... Kd8 {[%clk
0:00:13.6]} 43. exf7 {[%clk 0:00:13.9]} 43... Ke7 {[%clk 0:00:14]} 44. g6 {[%clk
0:00:14.8]} 1-0

[Event "*** Titled Tuesday Blitz"]
[Site "Chess.com"]
[Date "2021.03.02"]
[Round "3"]
[White "Jungle_Jaguar"]
[Black "K_A_S_T_O_R"]
[Result "1-0"]
[WhiteElo "2615"]
[BlackElo "2783"]
[TimeControl "180+1"]
[EndTime "10:28:40 PST"]
[Termination "Jungle_Jaguar won by resignation"]

1. e4 {[%clk 0:03:00.9]} 1... c5 {[%clk 0:02:59.6]} 2. Nf3 {[%clk 0:03:00.7]}
2... d6 {[%clk 0:03:00]} 3. d4 {[%clk 0:03:00.8]} 3... cxd4 {[%clk 0:03:00.3]}
4. Nxd4 {[%clk 0:03:01.7]} 4... Nf6 {[%clk 0:03:00.8]} 5. Nc3 {[%clk 0:03:02.1]}
5... a6 {[%clk 0:03:01.3]} 6. Be3 {[%clk 0:03:01.6]} 6... e6 {[%clk 0:02:56.6]}
7. f3 {[%clk 0:02:59.5]} 7... Nc6 {[%clk 0:02:54]} 8. Qd2 {[%clk 0:02:59.4]}
8... Be7 {[%clk 0:02:54.1]} 9. g4 {[%clk 0:02:59.4]} 9... O-O {[%clk 0:02:54.3]}
10. O-O-O {[%clk 0:02:57.9]} 10... Nxd4 {[%clk 0:02:54.3]} 11. Qxd4 {[%clk
0:02:53.8]} 11... b5 {[%clk 0:02:54.7]} 12. h4 {[%clk 0:02:49.4]} 12... Rb8
{[%clk 0:02:51.5]} 13. e5 {[%clk 0:02:46]} 13... dxe5 {[%clk 0:02:45.2]} 14.
Qxe5 {[%clk 0:02:45.1]} 14... Nd7 {[%clk 0:02:44.6]} 15. Qxb8 {[%clk 0:02:20.5]}
15... Nxb8 {[%clk 0:02:43.8]} 16. Rxd8 {[%clk 0:02:21.4]} 16... Rxd8 {[%clk
0:02:43.9]} 17. Bd3 {[%clk 0:02:20.5]} 17... Bb7 {[%clk 0:02:23.9]} 18. Be4
{[%clk 0:02:14.1]} 18... Nc6 {[%clk 0:02:22.4]} 19. h5 {[%clk 0:01:57.9]} 19...
h6 {[%clk 0:02:21.2]} 20. Rd1 {[%clk 0:01:51.9]} 20... Rxd1+ {[%clk 0:02:19.1]}
21. Kxd1 {[%clk 0:01:52.8]} 21... Na5 {[%clk 0:02:11]} 22. Bxb7 {[%clk
0:01:49.3]} 22... Nxb7 {[%clk 0:02:11.2]} 23. Ne4 {[%clk 0:01:49.8]} 23... Kf8
{[%clk 0:02:07.5]} 24. Kd2 {[%clk 0:01:38.7]} 24... Ke8 {[%clk 0:02:02.2]} 25.
b3 {[%clk 0:01:37.3]} 25... Kd7 {[%clk 0:02:02]} 26. Kd3 {[%clk 0:01:37.1]}
26... Kc6 {[%clk 0:01:58.1]} 27. Bd4 {[%clk 0:01:19.3]} 27... Bf8 {[%clk
0:01:42.6]} 28. g5 {[%clk 0:01:13.2]} 28... hxg5 {[%clk 0:01:39.3]} 29. Nxg5
{[%clk 0:01:13.5]} 29... Nd8 {[%clk 0:01:31.2]} 30. Nh7 {[%clk 0:01:12.9]} 30...
Bd6 {[%clk 0:01:23.4]} 31. Bxg7 {[%clk 0:01:12.7]} 31... Bf4 {[%clk 0:01:20]}
32. Nf6 {[%clk 0:00:45.5]} 32... Nb7 {[%clk 0:01:12.1]} 33. h6 {[%clk
0:00:44.2]} 33... Nc5+ {[%clk 0:01:08.5]} 34. Ke2 {[%clk 0:00:44.2]} 34... Bxh6
{[%clk 0:01:09]} 35. Bxh6 {[%clk 0:00:44.4]} 35... a5 {[%clk 0:01:06.6]} 36. Bd2
{[%clk 0:00:42.7]} 36... a4 {[%clk 0:01:05.5]} 37. Be3 {[%clk 0:00:42.6]} 37...
Nb7 {[%clk 0:01:05.2]} 38. Ne4 {[%clk 0:00:40.2]} 38... axb3 {[%clk 0:01:04.1]}
39. axb3 {[%clk 0:00:40.1]} 39... f5 {[%clk 0:01:03.8]} 40. Ng5 {[%clk
0:00:31.2]} 40... Kd5 {[%clk 0:01:03.7]} 41. Kd3 {[%clk 0:00:29.8]} 41... b4
{[%clk 0:00:53.9]} 42. f4 {[%clk 0:00:20.3]} 42... Nd6 {[%clk 0:00:52.3]} 43.
Nf3 {[%clk 0:00:20.6]} 43... Ne4 {[%clk 0:00:51.6]} 44. Ne5 {[%clk 0:00:20.9]}
44... Nf6 {[%clk 0:00:48.5]} 45. Nc4 {[%clk 0:00:20.6]} 45... Ne4 {[%clk
0:00:47.4]} 46. Nd2 {[%clk 0:00:19.4]} 46... Nc3 {[%clk 0:00:44.2]} 47. Nf3
{[%clk 0:00:18.4]} 47... Ne4 {[%clk 0:00:43.8]} 48. Bd2 {[%clk 0:00:17.7]} 48...
Nc5+ {[%clk 0:00:43]} 49. Ke3 {[%clk 0:00:18.4]} 49... Na6 {[%clk 0:00:43.9]}
50. Ne1 {[%clk 0:00:18.3]} 50... Kc5 {[%clk 0:00:40.4]} 51. Nd3+ {[%clk
0:00:18.2]} 51... Kb5 {[%clk 0:00:41]} 52. Kd4 {[%clk 0:00:18.9]} 52... Nc7
{[%clk 0:00:39.5]} 53. Nxb4 {[%clk 0:00:18.3]} 1-0

[Event "*** Titled Tuesday Blitz"]
[Site "Chess.com"]
[Date "2021.03.02"]
[Round "3"]
[White "NTBT_DHS"]
[Black "Mihnea2017"]
[Result "1/2-1/2"]
[WhiteElo "2760"]
[BlackElo "2458"]
[TimeControl "180+1"]
[EndTime "10:28:40 PST"]
[Termination "Game drawn - insufficient material"]

1. d4 {[%clk 0:03:00.9]} 1... Nf6 {[%clk 0:02:59.9]} 2. c4 {[%clk 0:03:01.5]}
2... e6 {[%clk 0:03:00.1]} 3. Nf3 {[%clk 0:03:02.2]} 3... d5 {[%clk 0:03:00.1]}
4. g3 {[%clk 0:03:02.9]} 4... dxc4 {[%clk 0:02:59]} 5. Bg2 {[%clk 0:03:03.3]}
5... c5 {[%clk 0:02:59.3]} 6. O-O {[%clk 0:03:03.6]} 6... Nc6 {[%clk 0:02:59.7]}
7. Qa4 {[%clk 0:03:04]} 7... Bd7 {[%clk 0:02:57.2]} 8. dxc5 {[%clk 0:03:03.6]}
8... Bxc5 {[%clk 0:02:38.6]} 9. Qxc4 {[%clk 0:03:03.8]} 9... Be7 {[%clk
0:02:38.2]} 10. Rd1 {[%clk 0:03:03.4]} 10... O-O {[%clk 0:02:37.3]} 11. Nc3
{[%clk 0:03:04]} 11... Rc8 {[%clk 0:02:36.5]} 12. Bf4 {[%clk 0:02:58.5]} 12...
a6 {[%clk 0:02:32]} 13. Rd2 {[%clk 0:02:57]} 13... b5 {[%clk 0:02:31.7]} 14. Qd3
{[%clk 0:02:54.8]} 14... Qb6 {[%clk 0:02:29.8]} 15. Rad1 {[%clk 0:02:53.8]}
15... Rfd8 {[%clk 0:02:26.9]} 16. Qe3 {[%clk 0:02:32.7]} 16... Bc5 {[%clk
0:02:16]} 17. Qd3 {[%clk 0:02:23.9]} 17... Bxf2+ {[%clk 0:02:14.3]} 18. Kf1
{[%clk 0:02:23.2]} 18... Be8 {[%clk 0:02:08]} 19. Qb1 {[%clk 0:02:18.1]} 19...
Rxd2 {[%clk 0:02:07.2]} 20. Rxd2 {[%clk 0:02:17.4]} 20... Be3 {[%clk 0:02:06.7]}
21. Bxe3 {[%clk 0:02:16.1]} 21... Qxe3 {[%clk 0:02:07.6]} 22. Rd3 {[%clk
0:02:16.2]} 22... Qb6 {[%clk 0:02:05]} 23. h3 {[%clk 0:02:01.8]} 23... h6 {[%clk
0:02:04.9]} 24. g4 {[%clk 0:02:00.8]} 24... Nb4 {[%clk 0:02:03.9]} 25. Rd2
{[%clk 0:01:59]} 25... Nbd5 {[%clk 0:02:03]} 26. Qd3 {[%clk 0:01:28.7]} 26...
Ne3+ {[%clk 0:02:00.1]} 27. Kg1 {[%clk 0:01:29.1]} 27... Nexg4+ {[%clk
0:01:53.1]} 28. Qd4 {[%clk 0:01:29.5]} 28... Qxd4+ {[%clk 0:01:52.8]} 29. Rxd4
{[%clk 0:01:29.7]} 29... Ne3 {[%clk 0:01:53]} 30. Rd6 {[%clk 0:01:30.3]} 30...
Nxg2 {[%clk 0:01:50.6]} 31. Kxg2 {[%clk 0:01:29.6]} 31... Bc6 {[%clk 0:01:50.2]}
32. a3 {[%clk 0:01:25.7]} 32... Kf8 {[%clk 0:01:50.2]} 33. Kf2 {[%clk
0:01:25.1]} 33... Bxf3 {[%clk 0:01:50.1]} 34. exf3 {[%clk 0:01:23]} 34... Ra8
{[%clk 0:01:48.2]} 35. Rb6 {[%clk 0:01:22.7]} 35... Ra7 {[%clk 0:01:41.9]} 36.
b4 {[%clk 0:01:15.8]} 36... Ke7 {[%clk 0:01:41.9]} 37. Rb8 {[%clk 0:01:14.5]}
37... Nd7 {[%clk 0:01:38]} 38. Rc8 {[%clk 0:01:09.3]} 38... Nb6 {[%clk 0:01:36]}
39. Rc6 {[%clk 0:01:05.4]} 39... Rb7 {[%clk 0:01:33.5]} 40. Ne4 {[%clk
0:01:04.1]} 40... Nc4 {[%clk 0:01:16.5]} 41. Rxa6 {[%clk 0:01:01.8]} 41... Rd7
{[%clk 0:01:10.2]} 42. Ke2 {[%clk 0:00:58.4]} 42... f5 {[%clk 0:01:09.5]} 43.
Nc5 {[%clk 0:00:58.6]} 43... Rd2+ {[%clk 0:01:09.6]} 44. Ke1 {[%clk 0:00:59.1]}
44... Ra2 {[%clk 0:01:09.5]} 45. Nxe6 {[%clk 0:00:52.3]} 45... Nxa3 {[%clk
0:00:59.9]} 46. Kf1 {[%clk 0:00:44.2]} 46... Ra1+ {[%clk 0:00:52.5]} 47. Kg2
{[%clk 0:00:43.6]} 47... Nc2 {[%clk 0:00:52.8]} 48. Rxa1 {[%clk 0:00:42]} 48...
Nxa1 {[%clk 0:00:53]} 49. Nxg7 {[%clk 0:00:36]} 49... Kf6 {[%clk 0:00:53.1]} 50.
Ne8+ {[%clk 0:00:35.6]} 50... Ke5 {[%clk 0:00:52.9]} 51. Nc7 {[%clk 0:00:34.6]}
51... Nc2 {[%clk 0:00:52.8]} 52. Nxb5 {[%clk 0:00:34.8]} 52... Nxb4 {[%clk
0:00:53.1]} 53. Kg3 {[%clk 0:00:35.5]} 53... Nd3 {[%clk 0:00:52.5]} 54. Nc3
{[%clk 0:00:33.5]} 54... Kd4 {[%clk 0:00:45.1]} 55. Nb5+ {[%clk 0:00:33.9]}
55... Ke3 {[%clk 0:00:45]} 56. Nd6 {[%clk 0:00:34.1]} 56... f4+ {[%clk
0:00:43.7]} 57. Kg4 {[%clk 0:00:29.7]} 57... Ne5+ {[%clk 0:00:43.9]} 58. Kf5
{[%clk 0:00:29.7]} 58... Nxf3 {[%clk 0:00:44.2]} 59. Nc4+ {[%clk 0:00:29.7]}
59... Kd4 {[%clk 0:00:41.5]} 60. Kxf4 {[%clk 0:00:30.3]} 60... Ng5 {[%clk
0:00:41.8]} 61. Nd6 {[%clk 0:00:30]} 61... Nxh3+ {[%clk 0:00:42]} 62. Kg3 {[%clk
0:00:29.5]} 62... Ng5 {[%clk 0:00:42]} 63. Nf5+ {[%clk 0:00:29.9]} 63... Ke5
{[%clk 0:00:41.9]} 64. Nxh6 {[%clk 0:00:30.8]} 1/2-1/2